fUSD/lending_fUSD_20250405
["ID","MTS","AMOUNT","RATE_DAILY","PERIOD"]
[357161315,1743827367506,-526.45432361,0.00016857,2]
[357161316,1743827367533,-392.34915965,0.00018,2]
[357161317,1743827367558,-212.70196803,0.000181,2]
[357161319,1743827398840,-250.0,0.00018542,2]
[357161320,1743827398866,-182.67098975,0.00018593,2]
[357161321,1743827398892,-767.32901025,0.00018694,2]
[357161322,1743827417668,-282.07098975,0.00018694,2]
[357161323,1743827417697,-250.0,0.000187,2]
[357161324,1743827417724,-150.0,0.00018706,7]
[357161325,1743827417757,-217.92901025,0.00018793,2]
[357161339,1743827432238,-82.07098975,0.00018793,2]
[357161340,1743827432247,-250.0,0.00018804,2]
[357161341,1743827432256,-200.0,0.00018983,2]
[357161342,1743827432266,-300.0,0.0001904,2]
[357161343,1743827432275,-784.33,0.00019041,2]
[357161344,1743827432284,-444.9,0.00019041,2]
[357161345,1743827432294,-784.33,0.00019041,2]
[357161346,1743827432303,-784.33,0.00019041,2]
[357161347,1743827432312,-444.9,0.00019041,2]
[357161348,1743827432321,-444.9,0.00019041,2]
[357161349,1743827432330,-784.33,0.00019041,2]
[357161350,1743827432340,-444.9,0.00019041,2]
[357161351,1743827432349,-784.33,0.00019041,2]
[357161352,1743827432358,-1000.0,0.00019062,2]
[357161353,1743827432367,-444.9,0.000191,2]
[357161354,1743827432377,-644.15,0.000191,2]
[357161355,1743827432387,-740.24,0.00019113,2]
[357161356,1743827432396,-1560.59,0.0001912,2]
[357161357,1743827432406,-3011.46,0.00019134,2]
[357161358,1743827432415,-442.88,0.00019178,2]
[357161359,1743827432425,-444.46,0.00019241,2]
[357161360,1743827432434,-504.43450239,0.000193,2]
[357161361,1743827432444,-286.44576579,0.000193,2]
[357161362,1743827432453,-167.38,0.00019309,2]
[357161363,1743827432463,-150.0,0.00019319,2]
[357161364,1743827432473,-23900.0,0.00019334,2]
[357161365,1743827432482,-150.0,0.00019378,2]
[357161366,1743827432491,-365.06,0.00019378,2]
[357161367,1743827432500,-181.78,0.00019378,2]
[357161368,1743827432509,-191.63,0.00019378,2]
[357161369,1743827432519,-150.0,0.00019378,2]
[357161370,1743827432528,-444.38,0.00019378,2]
[357161371,1743827432537,-444.38,0.00019378,2]
[357161372,1743827432547,-150.0,0.00019378,2]
[357161373,1743827432556,-150.0,0.00019378,2]
[357161374,1743827432565,-150.0,0.00019378,2]
[357161375,1743827432574,-150.0,0.00019378,2]
[357161376,1743827432583,-150.0,0.00019378,2]
[357161377,1743827432592,-150.0,0.00019378,2]
[357161378,1743827432601,-204.8671726,0.00019399,2]
[357161379,1743827432611,-150.0,0.00019624,2]
[357161380,1743827432621,-150.0,0.00019626,2]
[357161381,1743827432630,-150.0,0.00019636,2]
[357161382,1743827432640,-150.0,0.0001964,2]
[357161383,1743827432650,-152.63,0.00019643,2]
[357161384,1743827432659,-150.0,0.00019656,2]
[357161385,1743827432669,-150.0,0.00019671,2]
[357161386,1743827432679,-150.0,0.00019671,2]
[357161387,1743827432688,-150.0,0.00019672,2]
[357161388,1743827432698,-150.0,0.00019672,2]
[357161389,1743827432707,-150.0,0.00019697,2]
[357161390,1743827432716,-150.0,0.00019699,2]
[357161392,1743827432726,-1000.0,0.00019703,2]
[357161393,1743827432736,-226.62787336,0.00019708,2]
[357161394,1743827432746,-150.0,0.00019711,2]
[357161395,1743827432756,-1000.0,0.00019714,2]
[357161396,1743827432883,-150.0,0.00019727,2]
[357161397,1743827432892,-150.0,0.00019733,2]
[357161398,1743827432902,-150.0,0.00019746,2]
[357161399,1743827432911,-150.0,0.00019747,2]
[357161400,1743827432923,-1000.0,0.00019749,2]
[357161401,1743827432935,-150.0,0.00019754,2]
[357161402,1743827432946,-150.0,0.00019773,2]
[357161403,1743827432955,-150.0,0.00019774,2]
[357161404,1743827432965,-1000.0,0.00019781,2]
[357161405,1743827432974,-150.0,0.00019788,2]
[357161406,1743827432983,-456.65072495,0.0001979,2]
[357161407,1743827432992,-150.0,0.00019799,2]
[357161408,1743827433002,-5681.13232734,0.000198,2]
[357161409,1743827433012,-150.0,0.00019804,2]
[357161410,1743827433021,-332.33979638,0.00019809,2]
[357161411,1743827433031,-16197.72572869,0.0001981,2]
[357161412,1743827433041,-152.7482633,0.0001981,2]
[357161413,1743827433050,-5681.13232732,0.00019811,2]
[357161414,1743827433060,-150.0,0.00019812,2]
[357161415,1743827433070,-150.0,0.00019819,2]
[357161416,1743827433080,-5681.13232732,0.00019822,2]
[357161417,1743827433089,-150.0,0.00019824,2]
[357161418,1743827433099,-150.0,0.00019826,2]
[357161419,1743827433108,-150.0,0.00019831,2]
[357161420,1743827433117,-1000.0,0.00019832,2]
[357161421,1743827433127,-5681.13232732,0.00019833,2]
[357161422,1743827433136,-150.0,0.00019834,2]
[357161423,1743827433145,-1000.0,0.00019841,2]
[357161424,1743827433155,-5681.13232732,0.00019844,2]
[357161425,1743827433165,-150.0,0.00019847,2]
[357161426,1743827433174,-150.0,0.00019849,2]
[357161427,1743827433183,-150.0,0.00019849,2]
[357161428,1743827433193,-1000.0,0.0001985,2]
[357161429,1743827433203,-150.0,0.00019853,2]
[357161430,1743827433214,-5681.13232732,0.00019856,2]
[357161431,1743827433224,-150.0,0.00019857,2]
[357161432,1743827433234,-5681.13232732,0.00019867,2]
[357161433,1743827433243,-150.0,0.00019869,2]
[357161434,1743827433252,-152.1181287,0.0001987,2]
[357161435,1743827433261,-505.54285196,0.00019873,2]
[357161436,1743827433271,-150.0,0.00019875,2]
[357161437,1743827433280,-5681.13232732,0.00019878,2]
[357161438,1743827433289,-253.33831736,0.00019882,2]
[357161439,1743827433299,-5681.13232732,0.00019889,2]
[357161440,1743827433308,-269.8692,0.0001989,2]
[357161441,1743827433318,-600.0,0.00019891,2]
[357161442,1743827433327,-877.8155,0.00019896,2]
[357161443,1743827433336,-1996.2092,0.00019899,2]
[357161444,1743827433346,-510.5991,0.00019899,2]
[357161445,1743827433356,-62738.157,0.000199,2]
[357161446,1743827433365,-7887.2019,0.000199,2]
[357161447,1743827433374,-13142.0722,0.000199,2]
[357161448,1743827433383,-500.0,0.000199,2]
[357161449,1743827433393,-1000.0,0.000199,2]
[357161450,1743827433402,-1327.2679,0.000199,2]
[357161451,1743827433412,-921.2864,0.000199,2]
[357161452,1743827433421,-498.40024316,0.000199,2]
[357161453,1743827433430,-5681.13232732,0.000199,2]
[357161454,1743827433440,-47636.56050957,0.000199,2]
[357161455,1743827433449,-2694.81188151,0.000199,2]
[357161456,1743827433459,-171.65267592,0.000199,2]
[357161457,1743827433469,-8380.70497437,0.000199,2]
[357161458,1743827433478,-1000.0,0.00019923,2]
[357161459,1743827433487,-150.0,0.00019955,2]
[357161460,1743827433498,-152.48074373,0.00019964,2]
[357161461,1743827433507,-151.97160266,0.00019973,2]
[357161462,1743827433516,-525.84096363,0.00019973,2]
[357161463,1743827433526,-564.67152122,0.00019973,2]
[357161464,1743827433535,-500.0,0.00019973,2]
[357161465,1743827433544,-677.046,0.00019973,2]
[357161466,1743827433553,-1000.0,0.00019986,2]
[357161467,1743827433563,-574.0,0.0001999,2]
[357161468,1743827433573,-1366.0,0.0001999,2]
[357161469,1743827433583,-1458.902,0.0001999,2]
[357161470,1743827433593,-790.0,0.0001999,2]
[357161471,1743827433602,-1276.0,0.0001999,2]
[357161472,1743827433612,-909.0,0.0001999,2]
[357161473,1743827433622,-547.199,0.0001999,2]
[357161474,1743827433632,-4097.0,0.0001999,2]
[357161475,1743827433642,-1119.0,0.0001999,2]
[357161476,1743827433652,-152.941,0.0001999,2]
[357161477,1743827433662,-1285.0,0.0001999,2]
[357161478,1743827433671,-710.683,0.0001999,2]
[357161479,1743827433682,-250.0,0.0001999,2]
[357161480,1743827433694,-8228.7021457,0.00019996,2]
[357161481,1743827433705,-25426.9168389,0.00019996,2]
[357161482,1743827433715,-151.0,0.00019996,2]
[357161483,1743827433724,-358.12074093,0.00019999,2]
[357161484,1743827433736,-612087.40680304,0.0002,2]
[357161485,1743827433765,-325.11200482,0.0002,2]
[357161486,1743827433794,-891.54979015,0.0002,2]
[357161487,1743827433851,-391.54782696,0.0002,2]
[357161488,1743827433862,-286.24606077,0.0002,2]
[357161489,1743827433890,-2023.62144666,0.0002,2]
[357161492,1743827438149,-3954.0,0.00019869,2]
[357161493,1743827438159,-151.0,0.00019996,2]
[357161494,1743827438168,-24889.39135439,0.0002,2]
[357161495,1743827438307,-142.75031602,0.0002,2]
[357161496,1743827438322,-1363.83747749,0.0002,2]
[357161497,1743827438336,-2195.50539138,0.0002,2]
[357161498,1743827438351,-3967.82184322,0.0002,2]
[357161606,1743827440366,-544.80749999,0.0002,2]
[357161626,1743827443177,-12575.17879348,0.0002,2]
[357161700,1743827449871,-154.000581,0.00019869,2]
[357161701,1743827469673,165.37,0.00013699,2]
[357161702,1743827588029,201.369449,7.945e-05,2]
[357161703,1743827984926,14482.7477558,0.0003593,30]
[357161704,1743828064512,174.98,0.00013699,2]
[357161705,1743828064866,174.98,0.00013699,2]
[357161706,1743828065214,126.83311422,0.00013699,2]
[357161707,1743828065244,48.14688578,0.00013699,2]
[357161708,1743828065608,174.98,0.00013699,2]
[357161709,1743828065982,174.98,0.00013699,2]
[357161710,1743828066327,174.98159758,0.00013699,2]
[357161711,1743828340960,-150.0,0.00016952,2]
[357161712,1743828353913,-150.0,0.00016952,2]
[357161713,1743828407564,-150.0,0.00016952,2]
[357161714,1743828422653,-268.6568,0.00016952,2]
[357161715,1743828481900,-150.0,0.00016952,2]
[357161716,1743828486054,-150.0,0.00016952,2]
[357161717,1743828502677,-397.1032,0.00016952,2]
[357161718,1743828502702,-250.0,0.0001743,2]
[357161719,1743828502726,-370.578436,0.00017819,2]
[357161720,1743828502751,-300.0,0.00017909,2]
[357161721,1743828502776,-10539.56146316,0.0001791,2]
[357161722,1743828502801,-250.0,0.00018402,2]
[357161723,1743828502825,-500.0,0.00018411,2]
[357161724,1743828502850,-250.0,0.00018647,2]
[357161725,1743828502874,-250.0,0.00018647,2]
[357161726,1743828535530,-150.0,0.00018716,2]
[357161727,1743828535557,-150.0,0.0001887,7]
[357161728,1743828535582,-524.7,0.00018877,2]
[357161729,1743828535607,-1000.0,0.00018899,2]
[357161730,1743828535631,-23900.0,0.00018911,2]
[357161731,1743828535655,-2751.0,0.00018915,2]
[357161732,1743828535679,-200.0,0.00018997,2]
[357161733,1743828535702,-202.73,0.00019041,2]
[357161734,1743828535727,-150.0,0.00019069,2]
[357161735,1743828535750,-155344.07228023,0.0001907,2]
[357161736,1743828535773,-500.0,0.00019073,2]
[357161737,1743828535798,-375.12032341,0.00019073,2]
[357161738,1743828535820,-444.9,0.00019141,2]
[357161739,1743828551551,500.0,0.00019073,2]
[357161740,1743828608337,-152.63,0.00018894,2]
[357161741,1743828608362,-1815.3021,0.0001897,2]
[357161742,1743828608385,-168.94,0.00019213,2]
[357161743,1743828608416,-1415.76,0.00019216,2]
[357161744,1743828608443,-444.9,0.00019241,2]
[357161745,1743828608468,-1000.0,0.00019311,2]
[357161746,1743828608495,-2002.4679,0.00019311,2]
[357161749,1743828632424,-497.5321,0.00019311,2]
[357161750,1743828632434,-153.6503795,0.00019399,2]
[357161751,1743828632443,-1842.29505006,0.00019411,2]
[357161771,1743828632862,-231.17275636,0.00019411,2]
[357161773,1743828632872,-3865.83403338,0.0001979,2]
[357161775,1743828632884,-12315.05894211,0.0001979,2]
[357161777,1743828632893,-541.637,0.00019878,2]
[357161779,1743828632903,-188.73271918,0.000199,2]
[357161782,1743828632912,-1881.6131,0.000199,2]
[357161783,1743828632921,-398.72019452,0.000199,2]
[357161789,1743828633047,-263.2645,0.000199,2]
[357161790,1743828633064,-3822.5386,0.000199,2]
[357161791,1743828633074,-2179.97581595,0.000199,2]
[357161792,1743828633085,-171.65267592,0.000199,2]
[357161793,1743828633094,-1796.54125434,0.000199,2]
[357161794,1743828633104,-5587.13664958,0.000199,2]
[357161795,1743828633113,-5853.1285484,0.0001998,2]
[357161796,1743828633125,-27424.77742167,0.0001998,2]
[357161799,1743828638265,-1716.438685,0.0001998,2]
[357161804,1743828640604,-323.92007407,0.0001998,2]
[357161805,1743828640614,-302.02918295,0.0001999,2]
[357161814,1743828641165,-1739.97081705,0.0001999,2]
[357161815,1743828641175,-397.869,0.0001999,2]
[357161816,1743828641185,-574.0,0.0001999,2]
[357161817,1743828641195,-1366.0,0.0001999,2]
[357161818,1743828641204,-790.0,0.0001999,2]
[357161819,1743828641214,-1276.0,0.0001999,2]
[357161820,1743828641224,-1435.0,0.0001999,2]
[357161821,1743828641233,-543.0,0.0001999,2]
[357161822,1743828641242,-909.0,0.0001999,2]
[357161823,1743828641251,-4097.0,0.0001999,2]
[357161824,1743828641261,-3954.0,0.0001999,2]
[357161825,1743828641271,-151.0,0.0001999,2]
[357161826,1743828641280,-851.0,0.0001999,2]
[357161827,1743828641290,-1119.0,0.0001999,2]
[357161828,1743828641299,-4255.0849862,0.00019995,2]
[357161829,1743828641309,-151.0,0.00019996,2]
[357161830,1743828641318,-30215.6805637,0.00019996,2]
[357161831,1743828641327,-300.0,0.00019999,2]
[357161832,1743828641337,-1086.95971035,0.00019999,5]
[357161833,1743828641347,-310474.83144639,0.0002,2]
[357161834,1743828641356,-11844.73768936,0.0002,4]
[357161860,1743828687243,185.09,0.00013699,2]
[357161861,1743828800243,328.861851,0.00029705,120]
[357161862,1743828800794,500.0,0.00031305,120]
[357161863,1743828804823,258.307976,0.00029705,120]
[357161864,1743828805879,500.0,0.00031305,120]
[357161865,1743828814024,204.65182,0.00029205,120]
[357161866,1743828814550,500.0,0.00031305,120]
[357161867,1743829350386,-212.70196803,0.00017492,2]
[357161868,1743829534128,429.0,0.000263,100]
[357161869,1743829592123,-852.66145684,0.00017492,2]
[357161870,1743829641357,10000.0,0.000321,120]
[357161871,1743829659721,10000.0,0.000321,120]
[357161872,1743829682248,10000.0,0.000321,120]
[357161873,1743829709063,5072.0,0.000321,120]
[357161874,1743829761088,-272.94657513,0.00017492,2]
[357161875,1743829804737,10000.0,0.000321,120]
[357161877,1743829820311,185.09,0.00013699,2]
[357161878,1743829826596,10000.0,0.000321,120]
[357161881,1743829831461,-300.0,0.00018969,2]
[357161882,1743829831471,-724.2454,0.0001897,2]
[357161883,1743829831481,-437.3953,0.0001897,2]
[357161884,1743829831490,-352.7265,0.0001897,2]
[357161885,1743829831500,-256.4154,0.0001897,2]
[357161886,1743829831509,-500.0,0.0001897,2]
[357161887,1743829831519,-500.0,0.0001897,2]
[357161888,1743829831529,-449.65955147,0.0001897,2]
[357161889,1743829831538,-152.63,0.00019234,2]
[357161890,1743829831550,-153.6503795,0.00019399,2]
[357161891,1743829831559,-265.4407,0.00019411,2]
[357161892,1743829831568,-1000.0,0.00019496,2]
[357161893,1743829831578,-5811.99479437,0.00019511,2]
[357161894,1743829831591,-8217.59609124,0.00019511,2]
[357161895,1743829831602,-5984.5947902,0.00019511,2]
[357161896,1743829831612,-3885.81432419,0.00019511,2]
[357161897,1743829831621,-262.35,0.00019596,2]
[357161898,1743829831630,-1979.06367581,0.00019739,2]
[357161899,1743829831642,-1974.93632419,0.00019739,2]
[357161900,1743829831651,-151.0,0.00019739,2]
[357161901,1743829831659,-810.122,0.00019739,2]
[357161902,1743829831669,-317.87666622,0.00019756,2]
[357161903,1743829831731,-1020.43333378,0.00019756,2]
[357161904,1743829831741,-200.0,0.0001984,2]
[357161905,1743829831751,-300.0,0.00019893,2]
[357161906,1743829831761,-10281.0672,0.00019894,2]
[357161907,1743829831771,-446.93407206,0.00019895,2]
[357161916,1743829837357,-2683.6833661,0.00019895,2]
[357161917,1743829837412,-939.84467721,0.00019895,2]
[357161918,1743829837421,-15243.549,0.00019895,2]
[357161919,1743829837431,-573.1374,0.00019895,2]
[357161920,1743829837440,-532.174,0.00019899,2]
[357161921,1743829837450,-176.15053792,0.000199,2]
[357161922,1743829837459,-22535.14438487,0.000199,2]
[357161969,1743829839669,-485.0,0.000199,2]
[357161970,1743829839838,-12521.05801513,0.000199,2]
[357161971,1743829839848,-187.9057,0.000199,2]
[357161972,1743829839857,-1413.4103,0.000199,2]
[357161973,1743829839867,-3200.7886,0.000199,2]
[357161974,1743829839877,-1980.4009,0.000199,2]
[357161975,1743829839886,-11612.267,0.000199,2]
[357161976,1743829839895,-1254.5681,0.000199,2]
[357161977,1743829839905,-4047.4849,0.000199,2]
[357161978,1743829839914,-1384.1299,0.000199,2]
[357161979,1743829839923,-6153.8552,0.000199,2]
[357161980,1743829839933,-502.7241674,0.000199,2]
[357161981,1743829839943,-844.41503124,0.000199,2]
[357161982,1743829839952,-3724.75776638,0.000199,2]
[357161983,1743829839962,-500.0,0.00019973,2]
[357161984,1743829839971,-241.931,0.0001999,2]
[357161985,1743829839980,-181.526,0.0001999,2]
[357161986,1743829839989,-256.974,0.0001999,2]
[357161987,1743829839998,-171.807,0.0001999,2]
[357161988,1743829840007,-2042.0,0.0001999,2]
[357161989,1743829840017,-574.0,0.0001999,2]
[357161990,1743829840027,-1366.0,0.0001999,2]
[357161991,1743829840038,-1276.0,0.0001999,2]
[357161992,1743829840047,-1435.0,0.0001999,2]
[357161993,1743829840056,-790.0,0.0001999,2]
[357161994,1743829840065,-4097.0,0.0001999,2]
[357161995,1743829840074,-909.0,0.0001999,2]
[357161997,1743829840083,-543.0,0.0001999,2]
[357161999,1743829840093,-192.86220691,0.0001999,2]
[357162001,1743829840102,-13181.97489631,0.00019994,2]
[357162003,1743829840112,-9475.57784051,0.00019995,2]
[357162005,1743829840127,-5449.69531889,0.00019995,2]
[357162007,1743829840136,-6001.8321631,0.00019995,2]
[357162009,1743829840146,-300.0,0.00019999,2]
[357162011,1743829840155,-513.0,0.0002,2]
[357162013,1743829840164,-130334.36451801,0.0002,4]
[357162016,1743829840188,-6945.00601827,0.0002,4]
[357162018,1743829840197,-7556.92149722,0.0002,4]
[357162020,1743829840207,-1013.0,0.0002,6]
[357162022,1743829840216,-3268.90415033,0.0002,2]
[357162027,1743829840237,-1119.0,0.00019739,2]
[357162029,1743829840246,-2372.64300397,0.0002,2]
[357162031,1743829840256,-4593.14871398,0.0002,2]
[357162193,1743829842163,-167.73673983,0.0002,2]
[357162202,1743829843616,-455712.23367966,0.0002,2]
[357162215,1743829845441,7033.66135898,0.000321,120]
[357162219,1743829860872,10000.0,0.00032,120]
[357162220,1743829881673,10000.0,0.00032,120]
[357162221,1743829898731,4924.0,0.00032,120]
[357162239,1743830647994,504.5610768,0.00013699,2]
[357162240,1743830648024,1269.7289232,0.00013699,2]
[357162241,1743830648314,1774.29,0.00013699,2]
[357162242,1743830648723,1774.29,0.00013699,2]
[357162243,1743830649053,154.82739126,0.00013699,2]
[357162244,1743830649081,1619.46260874,0.00013699,2]
[357162245,1743830650018,1774.29,0.00013699,2]
[357162246,1743830650470,1145.97070245,0.00013699,2]
[357162247,1743830650498,628.31929755,0.00013699,2]
[357162248,1743830650822,1774.29,0.00013699,2]
[357162249,1743830651211,153.90742366,0.00013699,2]
[357162250,1743830651241,1620.38257634,0.00013699,2]
[357162251,1743830651614,640.20180722,0.00013699,2]
[357162252,1743830651642,1134.08819278,0.00013699,2]
[357162253,1743830651998,1774.29,0.00013699,2]
[357162254,1743830652320,1774.29,0.00013699,2]
[357162255,1743830652657,1774.29,0.00013699,2]
[357162256,1743830653034,1774.29,0.00013699,2]
[357162257,1743830654144,1774.29,0.00013699,2]
[357162258,1743830654329,1774.29,0.00013699,2]
[357162259,1743830654648,1774.29,0.00013699,2]
[357162260,1743830655039,1774.29,0.00013699,2]
[357162261,1743830655422,1774.29,0.00013699,2]
[357162262,1743830655792,1774.29,0.00013699,2]
[357162263,1743830656142,1774.38134722,0.00013699,2]
[357162264,1743830656420,-150.0,0.00018025,2]
[357162266,1743830678159,-150.0,0.00018025,2]
[357162267,1743830719639,4769.24409709,9e-05,2]
[357162268,1743830736712,9575.046,8e-05,2]
[357162271,1743830796091,-191.44752289,0.00018025,2]
[357162277,1743830909518,185.09,0.00013699,2]
[357162278,1743830913955,2723.79945548,0.000149,2]
[357162303,1743831031588,-614.02894543,0.00018025,2]
[357162304,1743831031600,-127.51353168,0.00018025,2]
[357162305,1743831031610,-500.0,0.00018877,2]
[357162306,1743831031620,-97.16646832,0.00019201,2]
[357162307,1743831031632,-53.82348943,0.00019201,2]
[357162308,1743831031643,-1341.67904597,0.0001926,2]
[357162309,1743831031655,-1259.89384361,0.0001926,2]
[357162310,1743831031667,-611.05,0.0001926,2]
[357162311,1743831031679,-494.81135598,0.0001926,2]
[357162312,1743831031690,-493.5826747,0.0001926,2]
[357162313,1743831031702,-396.3812676,0.0001926,2]
[357162314,1743831031714,-2507.43057068,0.0001926,2]
[357162315,1743831031727,-2463.17124146,0.0001926,2]
[357162316,1743831031737,-379.761893,0.00019301,2]
[357162317,1743831031747,-153.6503795,0.00019399,2]
[357162318,1743831031757,-250.0,0.00019793,2]
[357162319,1743831031767,-200.0,0.0001984,2]
[357162320,1743831031776,-1631.547,0.00019894,2]
[357162321,1743831031785,-3090.37029784,0.00019894,2]
[357162322,1743831031798,-910.33030216,0.00019894,2]
[357162323,1743831031808,-450.0,0.00019899,2]
[357162324,1743831031818,-167.76241705,0.000199,2]
[357162325,1743831031828,-759.97352808,0.000199,2]
[357162326,1743831031838,-1771.38451852,0.000199,2]
[357162327,1743831031850,-6388.25320085,0.000199,2]
[357162328,1743831032515,-250.0,0.000199,2]
[357162333,1743831037667,-6346.80758099,0.000199,2]
[357162334,1743831038475,-150.0,0.000199,2]
[357162337,1743831039818,-327.57804087,0.000199,2]
[357162338,1743831039830,-2601.58928188,0.000199,2]
[357162343,1743831042755,-21.27194703,0.00019825,2]
[357162347,1743831043652,-206.0,0.00019825,2]
[357162352,1743831045613,-1706.04000656,0.00019825,2]
[357162353,1743831045673,-313.06330969,0.00019825,2]
[357162354,1743831045685,-6136.8892724,0.00019825,2]
[357162355,1743831045789,-2383.76354222,0.00019825,2]
[357162356,1743831045849,-496.302152,0.00019825,2]
[357162357,1743831045910,-4958.25396099,0.00019825,2]
[357162358,1743831045971,-864.53248379,0.00019825,2]
[357162387,1743831490911,-153.6503795,0.00019399,2]
[357162388,1743831490933,-1000.0,0.00019676,2]
[357162389,1743831490953,-159.0,0.00019676,2]
[357162390,1743831490975,-6813.88332532,0.00019825,2]
[357162391,1743831490997,-150.0,0.00019899,2]
[357162392,1743831491018,-300.0,0.00019899,2]
[357162393,1743831491039,-402.17933392,0.000199,2]
[357162394,1743831491060,-691.727,0.000199,2]
[357162395,1743831491081,-150.0,0.000199,2]
[357162396,1743831491102,-2015.2454,0.000199,2]
[357162397,1743831491123,-10876.83050399,0.000199,2]
[357162398,1743831491145,-167.76241704,0.000199,2]
[357162399,1743831491167,-18798.54641513,0.000199,2]
[357162400,1743831491189,-1197.69416956,0.000199,2]
[357162401,1743831491209,-516.6106185,0.000199,2]
[357162402,1743831491229,-180.8891559,0.000199,2]
[357162403,1743831491251,-663.00851678,0.000199,2]
[357162404,1743831491277,-2483.17184426,0.000199,2]
[357162405,1743831491297,-500.0,0.00019973,2]
[357162406,1743831491318,-1366.0,0.0001998,2]
[357162407,1743831491338,-574.0,0.0001998,2]
[357162408,1743831491360,-790.0,0.0001998,2]
[357162409,1743831491380,-1435.0,0.0001998,2]
[357162410,1743831491405,-1276.0,0.0001998,2]
[357162411,1743831491426,-905.689,0.0001998,2]
[357162412,1743831491447,-543.0,0.0001998,2]
[357162413,1743831491468,-2107.18,0.0001998,2]
[357162414,1743831491488,-1119.0,0.0001998,2]
[357162415,1743831491509,-262.35,0.00019984,2]
[357162416,1743831491530,-2681.919,0.0001999,2]
[357162417,1743831491703,-151.0,0.0001999,2]
[357162418,1743831491724,-2042.0,0.0001999,2]
[357162419,1743831491744,-2654.58134954,0.00019999,2]
[357162420,1743831491765,-503.825,0.00019999,2]
[357162421,1743831491789,-280716.56997807,0.0002,2]
[357162422,1743831491809,-4999.989999,0.0002,2]
[357162423,1743831491829,-150.0,0.0002,2]
[357162424,1743831491849,-565.57920452,0.0002,2]
[357162425,1743831491872,-3078672.61408897,0.0002,2]
[357162427,1743831512194,-150.0,0.00019899,2]
[357162428,1743831512550,-253.06,0.00019899,2]
[357162429,1743831512571,-500.0,0.00019973,2]
[357162430,1743831512595,-240260.08967009,0.0002,2]
[357162431,1743831512615,-492.76461982,0.0002,2]
[357162432,1743831512637,-383.0,0.0002,2]
[357162433,1743831512659,-150.0,0.0002,2]
[357162434,1743831512680,-1676.30870703,0.0002,2]
[357162435,1743831512701,-150.0,0.0002,2]
[357162436,1743831512723,-802.85586837,0.0002,2]
[357162437,1743831512744,-11293.2202552,0.0002,2]
[357162438,1743831512772,-264992.60987949,0.0002,2]
[357162439,1743831526651,-150.0,0.00019399,2]
[357162440,1743831542909,-150.0,0.00019399,2]
[357162443,1743831570975,-238.163187,0.00019399,2]
[357162444,1743831570996,-500.0,0.000198,2]
[357162445,1743831571020,-521.97762037,0.000199,2]
[357162446,1743831571040,-500.0,0.000199,2]
[357162447,1743831571061,-1000.0,0.000199,2]
[357162448,1743831571082,-317.15859403,0.00019973,2]
[357162449,1743831571103,-300.0,0.00019999,2]
[357162450,1743831571124,-150.0,0.00019999,2]
[357162451,1743831571147,-1677909.97677758,0.0002,2]
[357162452,1743831571166,-2000.0,0.0002,4]
[357162453,1743831571186,-151.17,0.0002,2]
[357162454,1743831571206,-151.17,0.0002,2]
[357162455,1743831571227,-151.17,0.0002,2]
[357162456,1743831571247,-151.17,0.0002,2]
[357162457,1743831571268,-151.17,0.0002,2]
[357162458,1743831571291,-151.17,0.0002,2]
[357162459,1743831571312,-151.17,0.0002,2]